fUSD/lending_fUSD_20250108
["ID","MTS","AMOUNT","RATE_DAILY","PERIOD"]
[348179015,1736368263453,-500.0,0.00011889,2]
[348179016,1736368263462,-527.64,0.00011889,2]
[348179017,1736368263474,-500.0,0.00011889,2]
[348179018,1736368263484,-593.05,0.00011889,2]
[348179019,1736368263493,-500.0,0.00011889,2]
[348179020,1736368263502,-663.42,0.00011889,2]
[348179021,1736368263512,-500.0,0.00011889,2]
[348179022,1736368263521,-534.64,0.00011889,2]
[348179023,1736368263530,-500.0,0.00011889,2]
[348179024,1736368263540,-535.08,0.00011889,2]
[348179025,1736368263550,-570.1404347,0.00011889,2]
[348179026,1736368263559,-500.0,0.00011889,2]
[348179027,1736368263569,-538.57,0.00011889,2]
[348179028,1736368263578,-561.85,0.00011889,2]
[348179029,1736368263587,-630.51,0.00011889,2]
[348179030,1736368263596,-500.0,0.00011889,2]
[348179031,1736368263605,-2765.18,0.00011889,2]
[348179032,1736368263615,-500.0,0.00011889,2]
[348179033,1736368263624,-2517.1,0.00011889,2]
[348179034,1736368263634,-500.0,0.00011889,2]
[348179035,1736368263644,-500.0,0.00011889,2]
[348179036,1736368263654,-2710.85,0.00011889,2]
[348179037,1736368263663,-500.0,0.00011889,2]
[348179038,1736368263672,-500.0,0.00011889,2]
[348179039,1736368263682,-500.0,0.00011889,2]
[348179040,1736368263691,-500.0,0.00011889,2]
[348179041,1736368263701,-500.0,0.00011889,2]
[348179042,1736368263711,-500.0,0.00011889,2]
[348179043,1736368263723,-599.37,0.00011889,2]
[348179044,1736368263733,-500.0,0.00011889,2]
[348179045,1736368263743,-500.0,0.00011889,2]
[348179046,1736368263753,-500.0,0.00011889,2]
[348179047,1736368263762,-709.75,0.00011889,2]
[348179048,1736368263772,-500.0,0.00011889,2]
[348179049,1736368263782,-550.86,0.00011889,2]
[348179050,1736368263791,-500.0,0.00011889,2]
[348179051,1736368263804,-500.0,0.0001189,2]
[348179052,1736368263820,-689.11,0.0001189,2]
[348179053,1736368263830,-515.49,0.0001189,2]
[348179054,1736368263839,-500.0,0.0001189,2]
[348179055,1736368263848,-500.0,0.0001189,2]
[348179056,1736368263858,-547.76,0.0001189,2]
[348179057,1736368263867,-561.72,0.0001189,2]
[348179058,1736368263876,-500.0,0.0001189,2]
[348179059,1736368263886,-500.0,0.0001189,2]
[348179060,1736368263895,-201.0,0.00011893,2]
[348179061,1736368263906,-150.0,0.00011905,2]
[348179062,1736368263915,-150.0,0.00011908,2]
[348179063,1736368263924,-1860.0,0.00011914,2]
[348179064,1736368263933,-819.0,0.00011914,2]
[348179065,1736368263943,-1258.0,0.00011914,2]
[348179066,1736368263952,-3776.0,0.00011914,2]
[348179067,1736368263961,-915.0,0.00011914,2]
[348179068,1736368263972,-537.0,0.00011914,2]
[348179069,1736368263981,-3976.0,0.00011914,2]
[348179070,1736368263991,-150.0,0.00011914,2]
[348179071,1736368264001,-636.0,0.00011914,2]
[348179072,1736368264010,-988.241,0.00011914,2]
[348179073,1736368264020,-634.0,0.00011914,2]
[348179074,1736368264029,-150.0,0.00011914,2]
[348179075,1736368264039,-1337.95,0.00011915,2]
[348179076,1736368264192,-1592.28,0.00011915,2]
[348179077,1736368264203,-973.46,0.00011915,2]
[348179078,1736368264213,-500.0,0.00011915,2]
[348179079,1736368264223,-574.95,0.00011915,2]
[348179080,1736368264232,-2116.97,0.00011915,2]
[348179081,1736368264242,-500.0,0.00011915,2]
[348179082,1736368264255,-500.0,0.00011915,2]
[348179083,1736368264266,-629.22,0.00011915,2]
[348179084,1736368264276,-500.0,0.00011915,2]
[348179085,1736368264286,-1234.63,0.00011915,2]
[348179086,1736368264296,-500.0,0.00011915,2]
[348179087,1736368264306,-1311.11,0.00011915,2]
[348179088,1736368264315,-500.0,0.00011915,2]
[348179089,1736368264325,-806.87,0.00011915,2]
[348179090,1736368264335,-1622.34,0.00011915,2]
[348179091,1736368264345,-522.94,0.00011915,2]
[348179092,1736368264355,-1273.14,0.00011915,2]
[348179093,1736368264364,-3259.99,0.00011915,2]
[348179094,1736368264374,-641.989497,0.00011916,2]
[348179095,1736368264384,-582.764278,0.00011916,2]
[348179096,1736368264394,-546.05,0.00011916,2]
[348179097,1736368264404,-500.0,0.00011916,2]
[348179098,1736368264414,-2034.1,0.00011916,2]
[348179099,1736368264423,-826.92,0.00011916,2]
[348179100,1736368264434,-535.86,0.00011916,2]
[348179101,1736368264443,-1233.38,0.00011916,2]
[348179102,1736368264454,-1272.24,0.00011916,2]
[348179103,1736368264465,-1087.12,0.00011916,2]
[348179104,1736368264475,-837.0,0.00011916,2]
[348179105,1736368264485,-2167.89,0.00011916,2]
[348179106,1736368264495,-1159.95,0.00011916,2]
[348179107,1736368264505,-159.408706,0.00011916,2]
[348179108,1736368264515,-3866.0,0.00011916,2]
[348179109,1736368264525,-3066.22,0.00011916,2]
[348179110,1736368264535,-500.0,0.00011916,2]
[348179111,1736368264545,-1537.88,0.00011916,2]
[348179112,1736368264555,-2219.74,0.00011916,2]
[348179113,1736368264565,-150.0,0.00011918,2]
[348179114,1736368264575,-150.0,0.00011927,2]
[348179115,1736368264586,-150.0,0.00011945,2]
[348179116,1736368264596,-150.0,0.00011951,2]
[348179117,1736368264605,-500.0,0.00011953,2]
[348179118,1736368264616,-1083.32,0.00011959,2]
[348179119,1736368264625,-1273.93,0.00011959,2]
[348179120,1736368264635,-961.71,0.00011959,2]
[348179121,1736368264644,-2501.98,0.00011959,2]
[348179122,1736368264654,-1217.07,0.00011959,2]
[348179123,1736368264663,-1922.12,0.00011959,2]
[348179124,1736368264673,-998.41,0.00011959,2]
[348179125,1736368264682,-973.74,0.00011959,2]
[348179126,1736368264691,-1241.14,0.00011959,2]
[348179127,1736368264700,-2225.19,0.00011959,2]
[348179128,1736368264710,-1145.25,0.00011959,2]
[348179129,1736368264719,-881.98,0.00011959,2]
[348179130,1736368264730,-608.33,0.00011959,2]
[348179131,1736368264740,-500.0,0.00011959,2]
[348179132,1736368264749,-1092.64,0.00011959,2]
[348179133,1736368264759,-500.0,0.00011959,2]
[348179134,1736368264768,-758.32,0.00011959,2]
[348179135,1736368264779,-642.39,0.00011959,2]
[348179136,1736368264788,-1229.09,0.00011959,2]
[348179137,1736368264798,-1475.27,0.00011959,2]
[348179138,1736368264811,-1991.39,0.00011959,2]
[348179139,1736368264820,-6760.9,0.00011959,2]
[348179140,1736368264831,-601.15,0.00011959,2]
[348179141,1736368264843,-528.37,0.00011959,2]
[348179142,1736368264852,-2785.37,0.00011959,2]
[348179143,1736368264862,-643.82,0.00011959,2]
[348179144,1736368264873,-500.0,0.00011959,2]
[348179145,1736368264883,-4226.91,0.00011961,2]
[348179146,1736368264892,-229.0,0.00011963,2]
[348179147,1736368264902,-150.0,0.00011973,2]
[348179148,1736368264912,-160.557601,0.00011987,2]
[348179149,1736368264922,-160.557601,0.00011987,2]
[348179150,1736368264931,-118918.77566925,0.00012,7]
[348179151,1736368264941,-186057.29227147,0.00012,2]
[348179152,1736368264951,-150.0,0.00012008,2]
[348179153,1736368264961,-150.0,0.00012009,2]
[348179154,1736368264970,-150.0,0.00012017,2]
[348179155,1736368264981,-150.0,0.00012018,2]
[348179156,1736368264991,-200.0,0.00012055,2]
[348179157,1736368265000,-297.319,0.00012071,2]
[348179158,1736368265011,-150.0,0.00012072,2]
[348179159,1736368265020,-5846.773,0.00012075,2]
[348179160,1736368265031,-500.0,0.0001209,2]
[348179161,1736368265040,-500.0,0.0001209,2]
[348179162,1736368265050,-500.0,0.0001209,2]
[348179163,1736368265060,-500.0,0.0001209,2]
[348179164,1736368265070,-151.0,0.00012091,2]
[348179165,1736368265080,-1023.03,0.00012091,2]
[348179166,1736368265089,-922.64,0.00012091,2]
[348179167,1736368265099,-903.92,0.00012091,2]
[348179168,1736368265109,-500.0,0.00012091,2]
[348179169,1736368265119,-660.6,0.00012091,2]
[348179170,1736368265128,-500.0,0.00012091,2]
[348179171,1736368265139,-2035.65,0.00012091,2]
[348179172,1736368265149,-1317.96,0.00012091,2]
[348179173,1736368265159,-150.0,0.00012096,2]
[348179174,1736368265169,-150.0,0.00012097,2]
[348179175,1736368265179,-2507.75873,0.000121,2]
[348179176,1736368265189,-160.557601,0.000121,2]
[348179177,1736368265198,-160.557601,0.000121,2]
[348179178,1736368265208,-150.0,0.00012103,2]
[348179179,1736368265217,-1500.0,0.00012114,2]
[348179180,1736368265228,-150.0,0.00012115,2]
[348179181,1736368265238,-150.0,0.00012119,2]
[348179182,1736368265247,-150.0,0.00012121,2]
[348179183,1736368265257,-1500.0,0.00012133,2]
[348179184,1736368265267,-150.0,0.00012134,2]
[348179185,1736368265277,-229.36886747,0.00012151,2]
[348179186,1736368265286,-500.0,0.00012155,2]
[348179187,1736368265296,-500.0,0.00012155,2]
[348179188,1736368265305,-559.44,0.00012155,2]
[348179189,1736368265315,-666.58,0.00012155,2]
[348179190,1736368265325,-601.53610565,0.00012155,2]
[348179191,1736368265335,-739.06,0.00012155,2]
[348179192,1736368265345,-686.01,0.00012155,2]
[348179193,1736368265354,-500.0,0.00012155,2]
[348179194,1736368265364,-500.0,0.00012155,2]
[348179195,1736368265374,-500.0,0.00012155,2]
[348179196,1736368265384,-500.0,0.00012155,2]
[348179197,1736368265393,-500.0,0.00012155,2]
[348179198,1736368265403,-697.37,0.00012155,2]
[348179199,1736368265412,-597.05,0.00012155,2]
[348179200,1736368265422,-612.61,0.00012155,2]
[348179201,1736368265431,-500.0,0.00012155,2]
[348179202,1736368265441,-1203.05,0.00012155,2]
[348179203,1736368265451,-150.0,0.00012157,2]
[348179204,1736368265461,-832.32,0.00012162,2]
[348179205,1736368265471,-500.0,0.00012162,2]
[348179206,1736368265483,-596.16,0.00012162,2]
[348179207,1736368265493,-3519.47,0.00012162,2]
[348179208,1736368265503,-1440.39,0.00012162,2]
[348179209,1736368265512,-2840.79,0.00012162,2]
[348179210,1736368265522,-779.03,0.00012162,2]
[348179211,1736368265531,-500.0,0.00012162,2]
[348179212,1736368265541,-1471.52,0.00012162,2]
[348179213,1736368265550,-932.46,0.00012162,2]
[348179214,1736368265560,-736.36,0.00012162,2]
[348179215,1736368265569,-1554.74,0.00012162,2]
[348179216,1736368265579,-654.22,0.00012162,2]
[348179217,1736368265588,-500.0,0.00012163,2]
[348179218,1736368265598,-500.0,0.00012163,2]
[348179219,1736368265608,-580.08,0.00012163,2]
[348179220,1736368265617,-500.0,0.00012163,2]
[348179221,1736368265627,-500.0,0.00012163,2]
[348179222,1736368265637,-527.64,0.00012163,2]
[348179223,1736368265647,-500.0,0.00012163,2]
[348179224,1736368265657,-593.05,0.00012163,2]
[348179225,1736368265667,-500.0,0.00012163,2]
[348179226,1736368265677,-663.42,0.00012163,2]
[348179227,1736368265687,-500.0,0.00012163,2]
[348179228,1736368265696,-534.64,0.00012163,2]
[348179229,1736368265706,-500.0,0.00012163,2]
[348179230,1736368265716,-535.08,0.00012163,2]
[348179231,1736368265727,-500.0,0.00012163,2]
[348179232,1736368265737,-538.57,0.00012163,2]
[348179233,1736368265747,-561.85,0.00012163,2]
[348179234,1736368265757,-630.51,0.00012163,2]
[348179235,1736368265767,-500.0,0.00012163,2]
[348179236,1736368265776,-2765.18,0.00012163,2]
[348179237,1736368265786,-500.0,0.00012163,2]
[348179238,1736368265796,-2517.1,0.00012163,2]
[348179239,1736368265808,-500.0,0.00012163,2]
[348179240,1736368265818,-500.0,0.00012163,2]
[348179241,1736368265828,-2710.85,0.00012163,2]
[348179242,1736368265839,-500.0,0.00012163,2]
[348179243,1736368265848,-500.0,0.00012163,2]
[348179244,1736368265858,-500.0,0.00012163,2]
[348179245,1736368265867,-363.78,0.00012163,2]
[348179246,1736368265877,-500.0,0.00012163,2]
[348179247,1736368265887,-500.0,0.00012163,2]
[348179248,1736368265898,-599.37,0.00012163,2]
[348179249,1736368265907,-294.4368874,0.00012163,2]
[348179250,1736368265918,-500.0,0.00012163,2]
[348179251,1736368265927,-500.0,0.00012163,2]
[348179252,1736368265938,-709.75,0.00012163,2]
[348179253,1736368265948,-500.0,0.00012163,2]
[348179254,1736368265957,-500.0,0.00012164,2]
[348179255,1736368265968,-689.11,0.00012164,2]
[348179256,1736368265980,-515.49,0.00012164,2]
[348179257,1736368265990,-500.0,0.00012164,2]
[348179258,1736368265999,-500.0,0.00012164,2]
[348179259,1736368266009,-547.76,0.00012164,2]
[348179260,1736368266018,-561.72,0.00012164,2]
[348179261,1736368266029,-500.0,0.00012164,2]
[348179262,1736368266039,-500.0,0.00012164,2]
[348179263,1736368266050,-150.0,0.00012172,2]
[348179264,1736368266060,-150.0,0.00012177,2]
[348179265,1736368266069,-150.0,0.00012189,2]
[348179266,1736368266079,-1337.95,0.00012189,2]
[348179267,1736368266089,-1592.28,0.00012189,2]
[348179268,1736368266098,-973.46,0.00012189,2]
[348179269,1736368266108,-500.0,0.00012189,2]
[348179270,1736368266118,-574.95,0.00012189,2]
[348179271,1736368266128,-2116.97,0.00012189,2]
[348179272,1736368266137,-500.0,0.00012189,2]
[348179273,1736368266148,-500.0,0.00012189,2]
[348179274,1736368266160,-629.22,0.00012189,2]
[348179275,1736368266170,-500.0,0.00012189,2]
[348179276,1736368266179,-1234.63,0.00012189,2]
[348179277,1736368266188,-500.0,0.00012189,2]
[348179278,1736368266197,-1311.11,0.00012189,2]
[348179279,1736368266207,-500.0,0.00012189,2]
[348179280,1736368266216,-806.87,0.00012189,2]
[348179281,1736368266227,-522.94,0.00012189,2]
[348179282,1736368266236,-1622.34,0.00012189,2]
[348179283,1736368266246,-1273.14,0.00012189,2]
[348179284,1736368266255,-3259.99,0.00012189,2]
[348179285,1736368266265,-641.989497,0.0001219,2]
[348179286,1736368266275,-582.764278,0.0001219,2]
[348179287,1736368266284,-500.0,0.0001219,2]
[348179288,1736368266293,-2034.1,0.0001219,2]
[348179289,1736368266302,-826.92,0.0001219,2]
[348179290,1736368266312,-535.86,0.0001219,2]
[348179291,1736368266321,-1233.38,0.0001219,2]
[348179292,1736368266331,-1272.24,0.0001219,2]
[348179293,1736368266340,-155.329502,0.0001219,2]
[348179294,1736368266349,-1087.12,0.0001219,2]
[348179295,1736368266359,-837.0,0.0001219,2]
[348179296,1736368266368,-2167.89,0.0001219,2]
[348179297,1736368266377,-1159.95,0.0001219,2]
[348179298,1736368266387,-3866.0,0.0001219,2]
[348179299,1736368266397,-3066.22,0.0001219,2]
[348179300,1736368266407,-1537.88,0.0001219,2]
[348179301,1736368266418,-2219.74,0.0001219,2]
[348179302,1736368266428,-150.0,0.00012193,2]
[348179303,1736368266437,-1500.0,0.00012194,2]
[348179304,1736368266449,-150.0,0.00012195,2]
[348179305,1736368266460,-162.04271815,0.000122,2]
[348179306,1736368266469,-365.0,0.000122,2]
[348179307,1736368266481,-1500.0,0.00012202,2]
[348179308,1736368266492,-150.0,0.00012206,2]
[348179309,1736368266501,-500.0,0.00012227,2]
[348179310,1736368266511,-150.0,0.0001223,2]
[348179311,1736368266521,-1083.32,0.00012233,2]
[348179312,1736368266531,-1273.93,0.00012233,2]
[348179313,1736368266541,-961.71,0.00012233,2]
[348179314,1736368266550,-2501.98,0.00012233,2]
[348179315,1736368266560,-1217.07,0.00012233,2]
[348179316,1736368266570,-1922.12,0.00012233,2]
[348179317,1736368266580,-998.41,0.00012233,2]
[348179318,1736368266589,-973.74,0.00012233,2]
[348179319,1736368266599,-1241.14,0.00012233,2]
[348179320,1736368266608,-2225.19,0.00012233,2]
[348179321,1736368266618,-1145.25,0.00012233,2]
[348179322,1736368266627,-881.98,0.00012233,2]
[348179323,1736368266637,-608.33,0.00012233,2]
[348179324,1736368266647,-500.0,0.00012233,2]
[348179325,1736368266657,-1092.64,0.00012233,2]
[348179326,1736368266666,-500.0,0.00012233,2]
[348179327,1736368266675,-758.32,0.00012233,2]
[348179328,1736368266685,-642.39,0.00012233,2]
[348179329,1736368266695,-1229.09,0.00012233,2]
[348179330,1736368266705,-1475.27,0.00012233,2]
[348179331,1736368266714,-1991.39,0.00012233,2]
[348179332,1736368266725,-6760.9,0.00012233,2]
[348179333,1736368266735,-601.15,0.00012233,2]
[348179334,1736368266745,-528.37,0.00012233,2]
[348179335,1736368266754,-2785.37,0.00012233,2]
[348179336,1736368266764,-643.82,0.00012233,2]
[348179337,1736368266774,-432.39532281,0.00012233,2]
[348179338,1736368266784,-150.0,0.00012255,2]
[348179339,1736368266793,-736135.93878447,0.0001227,2]
[348179340,1736368266804,-151.0,0.0001227,2]
[348179341,1736368266814,-160.557601,0.0001227,2]
[348179342,1736368266823,-160.557601,0.0001227,2]
[348179343,1736368266833,-150.0,0.00012275,2]
[348179344,1736368266843,-150.0,0.00012285,2]
[348179345,1736368266853,-150.0,0.00012295,2]
[348179346,1736368266863,-3793.54392235,0.00012299,2]
[348179347,1736368266872,-18980673.02090817,0.000123,2]
[348179348,1736368266886,-2796653.85954853,0.000123,2]
[348179349,1736368266896,-3353874.93758493,0.000123,2]
[348179350,1736368267292,-2040.4,0.000123,2]
[348179351,1736368267665,-500.0,9.997e-05,2]
[348179352,1736368267675,-301.42,9.997e-05,2]
[348179353,1736368267699,-198.58,9.997e-05,2]
[348179354,1736368267708,-500.0,9.997e-05,2]
[348179355,1736368267717,-500.0,9.997e-05,2]
[348179356,1736368267728,-162.464812,9.998e-05,2]
[348179357,1736368267736,-946.97,0.00010244,2]
[348179358,1736368267747,-500.0,0.00010245,2]
[348179359,1736368267757,-946.97,0.00010271,2]
[348179360,1736368267767,-433.20007023,0.00010271,2]
[348179361,1736368267777,-500.0,0.00010271,2]
[348179362,1736368267787,-946.97,0.00010518,2]
[348179363,1736368267797,-946.97,0.00010545,2]
[348179364,1736368267811,-162.464812,0.00010546,2]
[348179365,1736368267821,-946.97,0.00010792,2]
[348179366,1736368267831,-946.97,0.00010819,2]
[348179367,1736368267843,-946.97,0.00011093,2]
[348179368,1736368267852,-162.464812,0.00011094,2]
[348179369,1736368267863,-162.464812,0.00011916,2]
[348179370,1736368267872,-170140.42229709,0.000123,2]
[348179371,1736368267886,-4715.40407992,0.000123,2]
[348179372,1736368267898,-677450.653103,0.000123,2]
[348179382,1736368629000,788.71,8.219e-05,2]
[348179397,1736369431832,-250.0,9.025e-05,2]
[348179398,1736369431842,-767.94255646,9.053e-05,2]
[348179399,1736369431894,-232.05744354,9.053e-05,2]
[348179400,1736369431906,-713.18854231,9.066e-05,2]
[348179401,1736369431947,-69.12145769,9.066e-05,2]
[348179402,1736369431958,-489.06,9.1e-05,2]
[348179403,1736369431968,-250.0,9.116e-05,2]
[348179404,1736369431978,-166.39,9.172e-05,2]
[348179405,1736369431988,-250.0,9.198e-05,2]
[348179406,1736369431998,-300.0,9.599e-05,2]
[348179407,1736369432008,-1208.29854231,9.6e-05,2]
[348179408,1736369432020,-4620.06155769,9.6e-05,2]
[348179409,1736369432029,-18942.54844226,9.6e-05,2]
[348179410,1736369432047,-834.10534825,9.6e-05,2]
[348179411,1736369432066,-1349.84479405,9.6e-05,2]
[348179412,1736369432078,-393.08355647,9.6e-05,2]
[348179413,1736369432089,-583.32405185,9.6e-05,2]
[348179414,1736369432229,-20732.92888209,9.6e-05,2]
[348179941,1736369437706,-3589.61142503,9.6e-05,2]
[348179943,1736369437716,-514.0832,9.6e-05,2]
[348179945,1736369437725,-3256.8256,9.6e-05,2]
[348179947,1736369437734,-10741.9186,9.6e-05,2]
[348179949,1736369437742,-15089.0428,9.6e-05,2]
[348179951,1736369437751,-500.0,9.699e-05,2]
[348179953,1736369437761,-500.0,9.699e-05,2]
[348179955,1736369437770,-500.0,9.699e-05,2]
[348179957,1736369437778,-585.41,9.699e-05,2]
[348179959,1736369437787,-500.0,9.699e-05,2]
[348179961,1736369437796,-500.0,9.699e-05,2]
[348179963,1736369437806,-500.0,9.699e-05,2]
[348179965,1736369437815,-500.0,9.699e-05,2]
[348179967,1736369437824,-500.0,9.699e-05,2]
[348179969,1736369437834,-500.0,9.699e-05,2]
[348179971,1736369437843,-414.03348646,9.699e-05,2]
[348179973,1736369437855,-85.96651354,9.699e-05,2]
[348179975,1736369437864,-500.0,9.699e-05,2]
[348179977,1736369437873,-140.40758646,9.699e-05,2]
[348179979,1736369437884,-359.59241354,9.699e-05,2]
[348179981,1736369437892,-107.45758646,9.699e-05,2]
[348179985,1736369437924,-392.54241354,9.699e-05,2]
[348179987,1736369437933,-260.014305,9.699e-05,2]
[348179989,1736369437944,-239.985695,9.699e-05,2]
[348179991,1736369437953,-500.0,9.699e-05,2]
[348179993,1736369437963,-500.0,9.699e-05,2]
[348179995,1736369437972,-158.916183,9.699e-05,2]
[348179999,1736369437995,-341.083817,9.699e-05,2]
[348180001,1736369438004,-1090.83,9.699e-05,2]
[348180003,1736369438014,-500.0,9.699e-05,2]
[348180005,1736369438024,-500.0,9.699e-05,2]
[348180007,1736369438033,-500.0,9.699e-05,2]
[348180009,1736369438043,-500.0,9.699e-05,2]
[348180011,1736369438052,-500.0,9.699e-05,2]
[348180013,1736369438061,-573.73,9.699e-05,2]
[348180015,1736369438071,-500.0,9.699e-05,2]
[348180017,1736369438080,-500.0,9.699e-05,2]
[348180019,1736369438089,-500.0,9.699e-05,2]
[348180021,1736369438098,-500.0,9.699e-05,2]
[348180023,1736369438108,-762.3,9.699e-05,2]
[348180025,1736369438117,-500.0,9.699e-05,2]
[348180045,1736369438354,-500.0,9.699e-05,2]
[348180046,1736369438364,-500.0,9.699e-05,2]
[348180047,1736369438373,-500.0,9.699e-05,2]
[348180048,1736369438382,-500.0,9.699e-05,2]
[348180049,1736369438392,-500.0,9.699e-05,2]
[348180050,1736369438403,-500.0,9.699e-05,2]
[348180051,1736369438414,-500.0,9.699e-05,2]
[348180052,1736369438423,-500.0,9.699e-05,2]
[348180053,1736369438433,-500.0,9.699e-05,2]
[348180054,1736369438442,-500.0,9.699e-05,2]
[348180055,1736369438451,-666.66,9.699e-05,2]
[348180056,1736369438460,-500.0,9.699e-05,2]
[348180057,1736369438469,-409.35389546,9.699e-05,2]
[348180058,1736369438479,-500.0,9.699e-05,2]
[348180059,1736369438488,-249.47908633,9.699e-05,2]
[348180060,1736369438498,-500.0,9.699e-05,2]
[348180061,1736369438507,-500.0,9.699e-05,2]
[348180062,1736369438517,-500.0,9.699e-05,2]
[348180063,1736369438527,-629.24,9.699e-05,2]
[348180064,1736369438536,-500.0,9.699e-05,2]
[348180065,1736369438546,-501.66,9.699e-05,2]
[348180066,1736369438556,-538.62,9.699e-05,2]
[348180067,1736369438565,-500.0,9.699e-05,2]
[348180068,1736369438575,-523.259551,9.699e-05,2]
[348180069,1736369438584,-500.0,9.699e-05,2]
[348180070,1736369438593,-500.0,9.699e-05,2]
[348180071,1736369438603,-500.0,9.699e-05,2]
[348180072,1736369438612,-165.163599,9.699e-05,2]
[348180073,1736369438622,-500.0,9.699e-05,2]
[348180074,1736369438632,-520.13,9.699e-05,2]
[348180075,1736369438641,-500.0,9.699e-05,2]
[348180076,1736369438650,-500.0,9.699e-05,2]
[348180077,1736369438662,-500.0,9.699e-05,2]
[348180078,1736369438671,-532.122936,9.699e-05,2]
[348180079,1736369438680,-500.0,9.699e-05,2]
[348180080,1736369438690,-2281.0,9.699e-05,2]
[348180081,1736369438699,-500.0,9.699e-05,2]
[348180082,1736369438708,-500.0,9.699e-05,2]
[348180083,1736369438717,-500.0,9.699e-05,2]
[348180084,1736369438727,-612.78,9.699e-05,2]
[348180085,1736369438736,-500.0,9.699e-05,2]
[348180086,1736369438745,-500.0,9.699e-05,2]
[348180087,1736369438754,-500.0,9.699e-05,2]
[348180088,1736369438763,-500.0,9.699e-05,2]
[348180089,1736369438773,-500.0,9.699e-05,2]
[348180090,1736369438782,-500.0,9.699e-05,2]
[348180091,1736369438791,-500.0,9.699e-05,2]
[348180092,1736369438800,-500.0,9.699e-05,2]
[348180093,1736369438809,-500.0,9.699e-05,2]
[348180094,1736369438818,-500.0,9.699e-05,2]
[348180095,1736369438827,-500.0,9.699e-05,2]
[348180096,1736369438836,-500.0,9.699e-05,2]
[348180097,1736369438845,-500.0,9.699e-05,2]
[348180098,1736369438855,-500.0,9.699e-05,2]
[348180099,1736369438864,-500.0,9.699e-05,2]
[348180100,1736369438873,-500.0,9.699e-05,2]
[348180101,1736369438882,-500.0,9.699e-05,2]
[348180102,1736369438892,-500.0,9.699e-05,2]
[348180103,1736369438902,-500.0,9.699e-05,2]
[348180104,1736369438912,-500.0,9.699e-05,2]
[348180105,1736369438922,-500.0,9.699e-05,2]
[348180106,1736369438932,-500.0,9.699e-05,2]
[348180107,1736369438941,-500.0,9.699e-05,2]
[348180108,1736369438950,-500.0,9.699e-05,2]
[348180109,1736369438959,-333.74,9.699e-05,2]
[348180110,1736369438968,-500.0,9.699e-05,2]
[348180111,1736369438978,-504.06543452,9.699e-05,2]
[348180112,1736369438987,-1678.3,9.699e-05,2]
[348180113,1736369438996,-500.0,9.699e-05,2]
[348180114,1736369439006,-500.0,9.699e-05,2]
[348180115,1736369439015,-500.0,9.699e-05,2]
[348180116,1736369439025,-180.1522927,9.699e-05,2]
[348180118,1736369439035,-500.0,9.699e-05,2]
[348180120,1736369439044,-500.0,9.699e-05,2]
[348180122,1736369439053,-490.88859585,9.699e-05,2]
[348180124,1736369439062,-500.0,9.699e-05,2]
[348180126,1736369439072,-500.0,9.699e-05,2]
[348180128,1736369439081,-500.0,9.699e-05,2]
[348180130,1736369439090,-500.0,9.699e-05,2]
[348180131,1736369439100,-500.0,9.699e-05,2]
[348180133,1736369439109,-500.0,9.699e-05,2]
[348180135,1736369439119,-500.0,9.699e-05,2]